bitfinex/quotes_BTCUSD_20250908
["timestamp","ask_amount","ask_price","bid_price","bid_amount"]
[1757294618404,0.33517792,110930.0,110910.0,0.18032639]
[1757294618605,0.18031047,110920.0,110910.0,0.52215108]
[1757294619052,0.18031047,110920.0,110910.0,0.52412108]
[1757294619255,0.18031047,110920.0,110910.0,0.52707108]
[1757294620294,0.18531047,110920.0,110910.0,0.52707108]
[1757294620505,0.37506722,110920.0,110910.0,0.00341794]
[1757294622190,0.37506722,110920.0,110910.0,0.00538794]
[1757294622931,0.38006722,110920.0,110910.0,0.00538794]
[1757294624406,0.38006722,110920.0,110910.0,0.18571433]
[1757294624616,0.19031047,110920.0,110910.0,0.18571433]
[1757294625285,0.18531047,110920.0,110910.0,0.18571433]
[1757294625487,0.18531047,110920.0,110910.0,0.37547108]
[1757294625713,0.18531047,110920.0,110910.0,0.18571433]
[1757294626544,0.18031047,110920.0,110910.0,0.18571433]
[1757294627129,0.18031013,110920.0,110910.0,0.18671433]
[1757294627264,0.18031013,110920.0,110910.0,0.18571433]
[1757294627670,0.18031013,110920.0,110910.0,0.19271433]
[1757294629493,0.18031013,110920.0,110910.0,0.19371433]
[1757294629912,0.49579261,110930.0,110910.0,0.19371433]
[1757294629913,0.34419261,110930.0,110910.0,0.19371433]
[1757294630123,0.30603586,110930.0,110920.0,0.00295]
[1757294630334,0.31603586,110930.0,110920.0,0.0051]
[1757294632119,0.16443586,110930.0,110920.0,0.0051]
[1757294632325,0.16443586,110930.0,110920.0,0.52676688]
[1757294632529,0.16443586,110930.0,110920.0,0.52776688]
[1757294632735,0.16443586,110930.0,110920.0,0.0061]
[1757294636070,0.35419261,110930.0,110920.0,0.001]
[1757294636260,0.35419261,110930.0,110920.0,0.00411]
[1757294636460,0.35419261,110930.0,110920.0,0.00626]
[1757294640263,0.16443586,110930.0,110920.0,0.00626]
[1757294641081,0.31599586,110930.0,110920.0,0.00626]
[1757294643257,0.50575261,110930.0,110920.0,0.00626]
[1757294643693,0.50575261,110930.0,110920.0,0.001]
[1757294644622,0.50575261,110930.0,110920.0,0.00411]
[1757294644846,0.35419261,110930.0,110920.0,0.00626]
[1757294645046,0.50575261,110930.0,110920.0,0.00626]
[1757294645479,0.50575261,110930.0,110920.0,0.00411]
[1757294647722,0.50575261,110930.0,110920.0,0.00626]
[1757294647943,0.35419261,110930.0,110920.0,0.00626]
[1757294648155,0.16443586,110930.0,110920.0,0.37632688]
[1757294648363,0.01,110930.0,110920.0,0.71764363]
[1757294649158,0.01,110930.0,110920.0,0.80955962]
[1757294649932,0.01,110930.0,110920.0,0.83049844]
[1757294650837,0.18026137,110950.0,110940.0,0.37003437]
[1757294650973,0.18026137,110950.0,110940.0,0.52374437]
[1757294651342,0.34088781,110960.0,110940.0,0.71661112]
[1757294651554,0.18026137,110950.0,110940.0,0.52374437]
[1757294652198,0.18026137,110950.0,110940.0,0.52685437]
[1757294653781,0.18026137,110950.0,110940.0,0.53285437]
[1757294655457,0.18026137,110950.0,110940.0,0.53785437]
[1757294655823,0.18026137,110950.0,110940.0,0.34809762]
[1757294656061,0.18026137,110950.0,110940.0,0.53785437]
[1757294656490,0.18026137,110950.0,110940.0,0.35753675]
[1757294656902,0.18026137,110950.0,110940.0,0.16778]
[1757294657474,0.18026137,110950.0,110940.0,0.54006784]
[1757294657675,0.18026137,110950.0,110940.0,0.53781437]
[1757294658457,0.18026137,110950.0,110940.0,0.01626]
[1757294658660,0.18026137,110950.0,110940.0,0.35979022]
[1757294658858,0.18026137,110950.0,110940.0,0.35753675]
[1757294663360,0.18026137,110950.0,110940.0,0.53781437]
[1757294664117,0.18026137,110950.0,110940.0,0.35753675]
[1757294669510,0.37001812,110950.0,110940.0,0.01626]
[1757294669722,0.52149812,110950.0,110940.0,0.011]
[1757294670092,0.52149812,110950.0,110940.0,0.01414]
[1757294670716,0.33174137,110950.0,110940.0,0.01414]
[1757294671139,0.52149812,110950.0,110940.0,0.01414]
[1757294672418,0.33174137,110950.0,110940.0,0.01414]
[1757294672565,0.52149812,110950.0,110940.0,0.01414]
[1757294673140,0.52149812,110950.0,110940.0,0.01623]
[1757294674928,0.18026137,110950.0,110940.0,0.01623]
[1757294675142,0.18026137,110950.0,110940.0,0.20598675]
[1757294675562,0.18026137,110950.0,110940.0,0.38626437]
[1757294675761,0.18026137,110950.0,110940.0,0.20598675]
[1757294675965,0.18026137,110950.0,110940.0,0.38626437]
[1757294677173,0.18026137,110950.0,110940.0,0.20598675]
[1757294678340,0.18026137,110950.0,110940.0,0.01623]
[1757294682911,0.36991622,110950.0,110940.0,0.01623]
[1757294685355,0.36991622,110950.0,110940.0,0.011]
[1757294686143,0.36991622,110950.0,110940.0,0.01623]
[1757294689186,0.52135622,110950.0,110940.0,0.01623]
[1757294694252,0.36991622,110950.0,110940.0,0.01623]
[1757294694504,0.52131622,110950.0,110940.0,0.01623]
[1757294695202,0.33166137,110950.0,110940.0,0.01623]
[1757294695607,0.18026137,110950.0,110940.0,0.01623]
[1757294698212,0.36991622,110950.0,110940.0,0.01623]
[1757294699624,0.36991622,110950.0,110940.0,0.19650762]
[1757294700038,0.36991622,110950.0,110940.0,0.01623]
[1757294700223,0.36991622,110950.0,110940.0,0.19650762]
[1757294700680,0.18026137,110950.0,110940.0,0.19650762]
[1757294701422,0.18932781,110960.0,110950.0,0.18026137]
[1757294701658,0.21649255,110970.0,110950.0,0.33689137]
[1757294701893,0.18024513,110960.0,110950.0,0.33381137]
[1757294702370,0.37908179,110970.0,110950.0,0.33381137]
[1757294702594,0.18031318,110970.0,110960.0,0.18024513]
[1757294702828,0.18031318,110970.0,110960.0,0.18547513]
[1757294703300,8.429e-05,110970.0,110960.0,0.46704597]
[1757294703930,0.00108429,110970.0,110960.0,0.46704597]
[1757294705204,0.00608429,110970.0,110960.0,0.28641818]
[1757294705436,0.00508429,110970.0,110960.0,0.62747303]
[1757294707070,8.429e-05,110970.0,110960.0,0.62747303]
[1757294707347,8.429e-05,110970.0,110960.0,0.43781818]
[1757294707859,0.18031318,110970.0,110960.0,0.24850599]
[1757294708620,0.18031318,110970.0,110960.0,0.09714599]
[1757294708844,0.18031318,110970.0,110960.0,0.24850599]
[1757294709119,0.18031318,110970.0,110960.0,0.09714599]
[1757294709392,0.18031318,110970.0,110960.0,0.24850599]
[1757294710405,0.36996803,110970.0,110960.0,0.24850599]
[1757294710633,0.18031318,110970.0,110960.0,0.00523]
[1757294710842,0.36996803,110970.0,110960.0,0.15659]
[1757294711840,0.18031318,110970.0,110960.0,0.15659]
[1757294712052,0.36996803,110970.0,110960.0,0.15884306]
[1757294712686,0.29031318,110970.0,110960.0,0.33908819]
[1757294712881,0.29031318,110970.0,110960.0,0.33683513]
[1757294715497,0.11008429,110970.0,110960.0,0.42875112]
[1757294715768,8.429e-05,110970.0,110960.0,0.42875112]
[1757294715937,8.429e-05,110970.0,110960.0,0.27739112]
[1757294716087,0.55962288,110970.0,110960.0,0.00523]
[1757294716282,0.36996803,110970.0,110960.0,0.00523]
[1757294716542,0.18031318,110970.0,110960.0,0.00523]
[1757294717180,0.18031318,110970.0,110960.0,0.18547513]
[1757294717963,0.18031318,110970.0,110960.0,0.00523]
[1757294719139,0.18031318,110970.0,110960.0,0.15655]
[1757294719473,0.36996803,110970.0,110960.0,0.15655]
[1757294720891,0.16811902,110970.0,110960.0,0.00523]
[1757294721106,0.36988374,110970.0,110960.0,0.15655]
[1757294722538,0.47988374,110970.0,110960.0,0.15655]
[1757294723205,0.47988374,110970.0,110960.0,0.00523]
[1757294724013,0.47988374,110970.0,110960.0,0.15655]
[1757294724222,0.47988374,110970.0,110960.0,0.16155]
[1757294724454,0.47988374,110970.0,110960.0,0.16555]
[1757294724652,0.47988374,110970.0,110960.0,0.01423]
[1757294724857,0.47988374,110970.0,110960.0,0.16555]
[1757294728655,0.63116374,110970.0,110960.0,0.16555]
[1757294729638,0.82081859,110970.0,110960.0,0.009]
[1757294731492,0.91273458,110970.0,110960.0,0.009]
[1757294731669,0.95200458,110970.0,110960.0,0.009]
[1757294731925,0.97907335,110970.0,110960.0,0.009]
[1757294732629,0.82779335,110970.0,110960.0,0.009]
[1757294732838,0.97907335,110970.0,110960.0,0.009]
[1757294733040,0.82779335,110970.0,110960.0,0.009]
[1757294733218,0.97907335,110970.0,110960.0,0.009]
[1757294734635,0.31729766,110970.0,110960.0,0.01224]
[1757294734857,0.65823251,110970.0,110960.0,0.01224]
[1757294735534,0.84788736,110970.0,110960.0,0.01224]
[1757294738108,0.46857766,110970.0,110960.0,0.01224]
[1757294738396,0.84788736,110970.0,110960.0,0.01224]
[1757294739520,0.46857766,110970.0,110960.0,0.01224]
[1757294739739,0.84788736,110970.0,110960.0,0.01224]
[1757294739994,0.84788736,110970.0,110960.0,0.009]
[1757294740437,0.84792502,110970.0,110960.0,0.009]
[1757294740891,0.18927443,110950.0,110930.0,0.15452]
[1757294741122,0.55963975,110940.0,110930.0,0.15452]
[1757294741344,0.55963975,110940.0,110930.0,0.1566]
[1757294742016,0.55963975,110940.0,110930.0,0.00532]
[1757294742233,0.36996607,110940.0,110930.0,0.01232]
[1757294742872,0.36996607,110940.0,110930.0,0.00832]
[1757294743063,0.36996607,110940.0,110930.0,0.00532]
[1757294743384,0.36996607,110940.0,110930.0,0.01032]
[1757294743654,0.36996607,110940.0,110930.0,0.01332]
[1757294746407,0.18029239,110940.0,110930.0,0.01332]
[1757294746638,0.36996607,110940.0,110930.0,0.01332]
[1757294756312,0.18029239,110940.0,110930.0,0.01332]
[1757294756538,0.36996607,110940.0,110930.0,0.01332]
[1757294762104,0.55963975,110940.0,110930.0,0.01332]
[1757294762916,0.55963975,110940.0,110930.0,0.01124]
[1757294762917,0.18029239,110940.0,110930.0,0.01124]
[1757294763147,0.55963975,110940.0,110930.0,0.01124]
[1757294763589,0.74931343,110940.0,110930.0,0.008]
[1757294763801,0.87884942,110940.0,110930.0,0.008]
[1757294764003,0.90592399,110940.0,110930.0,0.008]
[1757294764206,0.71625031,110940.0,110930.0,0.008]
[1757294764412,0.82625031,110940.0,110930.0,0.008]
[1757294764626,0.82625031,110940.0,110930.0,0.005]
[1757294765220,0.18029387,110930.0,110920.0,0.00314]
[1757294765470,0.52120755,110930.0,110920.0,0.00314]
[1757294765649,0.36996755,110930.0,110920.0,0.00524]
[1757294765856,0.33149387,110930.0,110920.0,0.00524]
[1757294766054,0.52116755,110930.0,110920.0,0.00524]
[1757294766458,0.52116755,110930.0,110920.0,0.00570794]
[1757294766691,0.52116755,110930.0,110920.0,0.00360794]
[1757294766937,0.36996755,110930.0,110920.0,0.00360794]
[1757294767145,0.52116755,110930.0,110920.0,0.00570794]
[1757294768024,0.52116755,110930.0,110920.0,0.00770794]
[1757294768831,0.33149387,110930.0,110920.0,0.00770794]
[1757294769031,0.52116755,110930.0,110920.0,0.00770794]
[1757294769239,0.52116755,110930.0,110920.0,0.01070794]
[1757294774743,0.52116755,110930.0,110920.0,0.00860794]
[1757294779446,0.33149387,110930.0,110920.0,0.01070794]
[1757294779652,0.52116755,110930.0,110920.0,0.01070794]
[1757294782000,0.33149387,110930.0,110920.0,0.01070794]
[1757294782269,0.18029387,110930.0,110920.0,0.20038162]
[1757294782500,0.18029387,110930.0,110920.0,0.35158162]
[1757294782771,0.18029387,110930.0,110920.0,0.34221807]
[1757294783038,0.11,110940.0,110930.0,0.18029387]
[1757294783248,0.18927443,110950.0,110940.0,0.18027762]
[1757294783453,0.18927443,110950.0,110930.0,0.46188354]
[1757294783682,0.18927443,110950.0,110940.0,0.00503]
[1757294783911,0.18927443,110950.0,110940.0,0.18756109]
[1757294784132,0.18927443,110950.0,110940.0,0.18530762]
[1757294784350,0.55713404,110960.0,110940.0,0.00503]
[1757294784565,0.18028848,110950.0,110940.0,0.33569109]
[1757294784796,0.18028848,110950.0,110940.0,0.33343762]
[1757294785209,0.19430154,110950.0,110940.0,0.33650762]
[1757294786080,0.20130154,110950.0,110940.0,0.33750762]
[1757294786256,0.20130154,110950.0,110940.0,0.15723]
[1757294786456,0.19630154,110950.0,110940.0,0.15948347]
[1757294787010,0.18930154,110950.0,110940.0,0.15848347]
[1757294787430,0.19130154,110950.0,110940.0,0.15848347]
[1757294787848,0.38997522,110950.0,110940.0,0.15844347]
[1757294788268,0.38097522,110950.0,110940.0,0.15844347]
[1757294788435,0.49097522,110950.0,110940.0,0.15844347]
[1757294788867,0.49097522,110950.0,110940.0,0.00728347]
[1757294789099,0.49497522,110950.0,110940.0,0.00503]
[1757294789777,0.49497522,110950.0,110940.0,0.00728347]
[1757294790215,0.30530154,110950.0,110940.0,0.00728347]
[1757294790443,0.49497522,110950.0,110940.0,0.00728347]
[1757294790857,0.30530154,110950.0,110940.0,0.00728347]
[1757294791723,0.49497522,110950.0,110940.0,0.00728347]
[1757294791928,0.49497522,110950.0,110940.0,0.15844347]
[1757294792152,0.30530154,110950.0,110940.0,0.15844347]
[1757294794999,0.30530154,110950.0,110940.0,0.00728347]
[1757294795194,0.30530154,110950.0,110940.0,0.15844347]
[1757294795764,0.49497522,110950.0,110940.0,0.15844347]
[1757294797860,0.49497522,110950.0,110940.0,0.15619]
[1757294798666,0.49497522,110950.0,110940.0,0.15844347]
[1757294799449,0.49497522,110950.0,110940.0,0.33872109]
[1757294799624,0.49497522,110950.0,110940.0,0.33646762]
[1757294800360,0.30530154,110950.0,110940.0,0.33646762]
[1757294801152,0.116,110950.0,110940.0,0.61804483]
[1757294801370,0.006,110950.0,110940.0,0.61804483]
[1757294801580,0.006,110950.0,110940.0,0.95804483]
[1757294803881,0.006,110950.0,110940.0,0.985109]
[1757294804365,0.004,110950.0,110940.0,0.985109]
[1757294804745,0.004,110950.0,110940.0,0.79544778]
[1757294804918,0.18924033,110970.0,110950.0,0.18026137]
[1757294805140,0.18924033,110970.0,110960.0,0.15840306]
[1757294806586,0.18924033,110970.0,110960.0,0.16040306]
[1757294807261,0.18924033,110970.0,110960.0,0.34064819]
[1757294807480,0.18022889,110970.0,110960.0,0.33839513]
[1757294807712,0.19021359,110980.0,110970.0,0.18022889]
[1757294807914,0.19021359,110980.0,110960.0,0.61997234]
[1757294807915,0.18022889,110970.0,110960.0,0.002]
[1757294808123,0.71063133,110970.0,110960.0,0.002]
[1757294808361,0.52097011,110970.0,110960.0,0.002]
[1757294808567,0.52097011,110970.0,110960.0,0.00507]
[1757294808710,0.52097011,110970.0,110960.0,0.00807]
[1757294812408,0.52097011,110970.0,110960.0,0.005]
[1757294813277,0.52097011,110970.0,110960.0,0.002]
[1757294813503,0.18024513,110960.0,110950.0,0.00316]
[1757294813648,0.18024513,110960.0,110950.0,0.00324429]
[1757294813649,0.36990635,110960.0,110950.0,0.00324429]
[1757294813852,0.36990635,110960.0,110950.0,8.429e-05]
[1757294814457,0.49885234,110960.0,110950.0,8.429e-05]
[1757294815285,0.49885234,110960.0,110950.0,0.00208429]
[1757294816287,0.49885234,110960.0,110950.0,0.00508429]
[1757294817584,0.54010873,110960.0,110950.0,0.00508429]
[1757294817817,0.54010873,110960.0,110950.0,0.00308429]
[1757294818233,0.54010873,110960.0,110950.0,8.429e-05]
[1757294818482,0.54210873,110960.0,110950.0,8.429e-05]
[1757294818644,0.57418027,110960.0,110950.0,8.429e-05]
[1757294819295,0.57318027,110960.0,110950.0,8.429e-05]
[1757294819862,0.57518027,110960.0,110950.0,8.429e-05]
[1757294820508,0.38551905,110960.0,110950.0,8.429e-05]
[1757294820714,0.72622027,110960.0,110950.0,8.429e-05]
[1757294830730,0.53815027,110960.0,110950.0,0.00324429]
[1757294830965,0.68919027,110960.0,110950.0,0.00324429]
[1757294831397,0.53815027,110960.0,110950.0,0.00324429]
[1757294831606,0.21531667,110960.0,110950.0,0.00530429]
[1757294831819,0.18824513,110960.0,110950.0,0.00530429]
[1757294832029,0.33928513,110960.0,110950.0,0.00530429]
[1757294832420,0.18824513,110960.0,110950.0,0.00530429]
[1757294833842,0.18824513,110960.0,110950.0,0.00324429]
[1757294834045,0.18824513,110960.0,110950.0,8.429e-05]
[1757294834046,0.37790635,110960.0,110950.0,8.429e-05]
[1757294834676,0.46982234,110960.0,110950.0,8.429e-05]
[1757294835019,0.49689296,110960.0,110950.0,8.429e-05]
[1757294835923,0.60689296,110960.0,110950.0,8.429e-05]
[1757294836152,0.64777642,110960.0,110950.0,8.429e-05]
[1757294836740,1.02480642,110960.0,110950.0,8.429e-05]
[1757294842774,1.21446764,110960.0,110950.0,8.429e-05]
[1757294843461,1.23378809,110960.0,110950.0,8.429e-05]
[1757294843880,1.38478809,110960.0,110950.0,8.429e-05]
[1757294844094,1.37878809,110960.0,110950.0,8.429e-05]
[1757294844295,1.38178809,110960.0,110950.0,8.429e-05]
[1757294844506,1.36246764,110960.0,110950.0,8.429e-05]
[1757294844654,1.36546764,110960.0,110950.0,8.429e-05]
[1757294845058,1.1951287,110960.0,110950.0,8.429e-05]
[1757294845470,1.17580642,110960.0,110950.0,8.429e-05]
[1757294845692,1.38640646,110960.0,110950.0,8.429e-05]
[1757294845903,1.40573199,110960.0,110950.0,8.429e-05]
[1757294846151,1.21107077,110960.0,110950.0,8.429e-05]
[1757294846439,1.40673199,110960.0,110950.0,8.429e-05]
[1757294846586,1.25273199,110960.0,110950.0,8.429e-05]
[1757294846960,1.41073199,110960.0,110950.0,1e-08]
[1757294854441,1.39140646,110960.0,110950.0,1e-08]
[1757294854669,1.169456,110960.0,110950.0,1e-08]
[1757294854841,1.34970113,110960.0,110950.0,1e-08]
[1757294857289,1.44464113,110960.0,110950.0,1e-08]
[1757294857483,1.34970113,110960.0,110950.0,1e-08]
[1757294857697,0.81937869,110960.0,110950.0,1e-08]
[1757294857883,1.34970113,110960.0,110950.0,1e-08]
[1757294858331,1.16003991,110960.0,110950.0,1e-08]
[1757294858704,1.34970113,110960.0,110950.0,1e-08]
[1757294862366,1.5397081,110960.0,110950.0,1e-08]
[1757294864613,1.55902243,110960.0,110950.0,1e-08]
[1757294867579,2.3251663,110960.0,110950.0,1e-08]
[1757294867780,2.429714,110960.0,110950.0,1e-08]
[1757294867952,2.46669618,110960.0,110950.0,1e-08]
[1757294870796,0.52106286,110910.0,110900.0,0.07585212]
[1757294871345,0.52110953,110910.0,110900.0,0.08385212]
[1757294871615,0.52210953,110910.0,110900.0,0.01824]
[1757294873054,0.711886,110910.0,110900.0,0.01824]
[1757294873265,0.711886,110910.0,110900.0,0.01624]
[1757294875313,0.52210953,110910.0,110900.0,0.01624]
[1757294875748,0.53135485,110910.0,110900.0,0.01624]
[1757294877411,0.53135485,110910.0,110900.0,0.01839]
[1757294879655,0.53135485,110910.0,110900.0,0.01596]
[1757294879868,0.53135485,110910.0,110900.0,0.01811]
[1757294880321,0.53135485,110910.0,110900.0,0.013]
[1757294880531,0.55843696,110910.0,110900.0,0.013]
[1757294880952,0.18035891,110890.0,110880.0,0.01]
[1757294881181,0.52109538,110890.0,110880.0,0.01296]
[1757294881410,0.33131891,110890.0,110880.0,0.01511]
[1757294881643,0.52109538,110890.0,110880.0,0.01511]
[1757294882528,0.52109538,110890.0,110880.0,0.01711]
[1757294883328,0.52209538,110890.0,110880.0,0.01811]
[1757294884120,0.52109538,110890.0,110880.0,0.01711]
[1757294884529,0.52409538,110890.0,110880.0,0.01711]
[1757294886602,0.52409538,110890.0,110880.0,0.01496]
[1757294886789,0.52409538,110890.0,110880.0,0.01711]
[1757294888265,0.37313538,110890.0,110880.0,0.01711]
[1757294888481,0.18335891,110890.0,110880.0,0.01711]
[1757294888696,0.33431891,110890.0,110880.0,0.20688647]
[1757294889124,0.18335891,110890.0,110880.0,0.20688647]
[1757294890793,0.18335891,110890.0,110880.0,0.38726165]
[1757294891169,0.18335891,110890.0,110880.0,0.66895411]
[1757294893891,0.18335891,110890.0,110880.0,0.29880246]
[1757294895012,0.18335891,110890.0,110880.0,0.47917764]
[1757294895392,0.18335891,110890.0,110880.0,0.29880246]
[1757294897859,0.18335891,110890.0,110880.0,0.47917764]
[1757294898510,0.18335891,110890.0,110880.0,0.29880246]
[1757294898721,0.18335891,110890.0,110880.0,0.25998599]
[1757294898937,0.18335891,110890.0,110880.0,0.44976246]
[1757294901394,0.37313538,110890.0,110880.0,0.16807]
[1757294901604,0.48313538,110890.0,110880.0,0.01711]
[1757294902255,0.29335891,110890.0,110880.0,0.01711]
[1757294902483,0.48313538,110890.0,110880.0,0.01711]
[1757294902669,0.37313538,110890.0,110880.0,0.01711]
[1757294903854,0.18335891,110890.0,110880.0,0.01711]
[1757294905638,0.37313538,110890.0,110880.0,0.01711]
[1757294907292,0.18335891,110890.0,110880.0,0.01711]
[1757294907517,0.48313538,110890.0,110880.0,0.01711]
[1757294909192,0.29335891,110890.0,110880.0,0.01711]
[1757294909465,0.18335891,110890.0,110880.0,0.01711]
[1757294911020,0.37313538,110890.0,110880.0,0.01496]
[1757294913316,0.37313538,110890.0,110880.0,0.012]
[1757294914134,0.37313538,110890.0,110880.0,0.01501]
[1757294915507,0.18335891,110890.0,110880.0,0.01501]
[1757294915780,0.37313538,110890.0,110880.0,0.01501]
[1757294917566,0.18335891,110890.0,110880.0,0.01501]
[1757294917759,0.37313538,110890.0,110880.0,0.01501]
[1757294918162,0.37313538,110890.0,110880.0,0.012]
[1757294918916,0.37313538,110890.0,110880.0,0.01501]
[1757294922562,0.37327242,110890.0,110880.0,0.01501]
[1757294923179,0.33427891,110890.0,110880.0,0.017]
[1757294925068,0.33427891,110890.0,110880.0,0.20691351]
[1757294925738,0.18335891,110890.0,110880.0,0.38728869]
[1757294925969,0.18335891,110890.0,110880.0,0.35779351]
[1757294927883,0.29335891,110890.0,110880.0,0.20691351]
[1757294928734,0.29335891,110890.0,110880.0,0.38728869]
[1757294930452,0.29335891,110890.0,110880.0,0.20691351]
[1757294931053,0.29335891,110890.0,110880.0,0.38728869]
[1757294931306,0.29335891,110890.0,110880.0,0.017]
[1757294931726,0.48327242,110890.0,110880.0,0.017]
[1757294931940,0.29335891,110890.0,110880.0,0.017]
[1757294941513,0.29335891,110890.0,110880.0,0.01501]
[1757294941718,0.48327242,110890.0,110880.0,0.012]
[1757294941873,0.57518841,110890.0,110880.0,0.012]
[1757294942081,0.60227644,110890.0,110880.0,0.012]
[1757294949615,0.75311644,110890.0,110880.0,0.01711]
[1757294949793,0.60227644,110890.0,110880.0,0.01711]
[1757294950158,0.75311644,110890.0,110880.0,0.01711]
[1757294950788,0.75311644,110890.0,110880.0,0.01502]
[1757294954696,0.60227644,110890.0,110880.0,0.01711]
[1757294954904,0.29335891,110890.0,110880.0,0.01711]
[1757294955149,0.44419891,110890.0,110880.0,0.01711]
[1757294957353,0.63411242,110890.0,110880.0,0.01502]
[1757294957555,0.63411242,110890.0,110880.0,0.012]
[1757294958175,0.63411242,110890.0,110880.0,0.01502]
[1757294961507,0.63411242,110890.0,110880.0,0.012]
[1757294962153,0.63411242,110890.0,110880.0,0.01523]
[1757294963041,0.44419891,110890.0,110880.0,0.01523]
[1757294963271,0.63411242,110890.0,110880.0,0.01739]
[1757294963922,0.41877707,110890.0,110880.0,0.01739]
[1757294964128,0.59913598,110890.0,110880.0,0.01739]
[1757294964339,0.40918247,110890.0,110880.0,0.01739]
[1757294964797,0.33115891,110890.0,110880.0,0.01739]
[1757294966328,0.35824595,110890.0,110880.0,0.01739]
[1757294977815,0.20744595,110890.0,110880.0,0.01739]
[1757294978018,0.35820595,110890.0,110880.0,0.01739]
[1757294978394,0.20744595,110890.0,110880.0,0.01739]
[1757294978609,0.35820595,110890.0,110880.0,0.01739]
[1757294980220,0.14472575,110890.0,110880.0,0.01739]
[1757294980477,0.32508466,110890.0,110880.0,0.01739]
[1757294980692,0.43508466,110890.0,110880.0,0.01739]
[1757294980923,0.44111891,110890.0,110880.0,0.01739]
[1757294982317,0.6310121,110890.0,110880.0,0.01739]
[1757294984973,0.4802521,110890.0,110880.0,0.01739]
[1757294985177,0.6310121,110890.0,110880.0,0.01739]
[1757294985865,0.6310121,110890.0,110880.0,0.01523]
[1757294986393,0.6310121,110890.0,110880.0,0.01739]
[1757294986607,0.6310121,110890.0,110880.0,0.01523]
[1757294986859,0.6310121,110890.0,110880.0,0.012]
[1757294987114,0.6310121,110890.0,110880.0,0.01523]
[1757294989589,0.6310121,110890.0,110880.0,0.01739]
[1757294991148,0.6310121,110890.0,110880.0,0.012]
[1757294991622,0.65809909,110890.0,110880.0,0.012]
[1757294992562,0.65809909,110890.0,110880.0,0.01513]
[1757294993768,0.4682059,110890.0,110880.0,0.01513]
[1757294993909,0.65809909,110890.0,110880.0,0.01513]
[1757294998413,0.65809909,110890.0,110880.0,0.012]
[1757294998851,0.65809909,110890.0,110880.0,0.01513]
[1757294999743,0.65809909,110890.0,110880.0,0.012]
[1757295000983,0.75001508,110890.0,110880.0,0.012]
[1757295001201,0.93990827,110890.0,110880.0,0.012]
[1757295001397,0.97550827,110890.0,110880.0,0.012]
[1757295002420,1.31550827,110890.0,110880.0,0.01]
[1757295002816,1.33485821,110890.0,110880.0,0.01]
[1757295003021,1.34285821,110890.0,110880.0,0.011]
[1757295003402,1.32850827,110890.0,110880.0,0.011]
[1757295004027,1.33442827,110890.0,110880.0,0.012]
[1757295004235,1.33642827,110890.0,110880.0,0.013]
[1757295005932,0.80596189,110890.0,110880.0,0.013]
[1757295006135,1.33642827,110890.0,110880.0,0.013]
[1757295007198,0.92887973,110890.0,110880.0,0.013]
[1757295007416,1.11877292,110890.0,110880.0,0.01613]
[1757295008422,1.11877292,110890.0,110880.0,0.013]
[1757295009066,0.77819973,110890.0,110880.0,0.01809]
[1757295009270,1.11877292,110890.0,110880.0,0.01809]
[1757295009481,1.11877292,110890.0,110880.0,0.01613]
[1757295009684,1.11877292,110890.0,110880.0,0.013]
[1757295010103,1.11877292,110890.0,110880.0,0.01613]
[1757295010306,1.11877292,110890.0,110880.0,0.01809]
[1757295010724,0.83696374,110890.0,110880.0,0.01809]
[1757295010928,0.49696374,110890.0,110880.0,0.01809]
[1757295014300,0.68685693,110890.0,110880.0,0.01809]
[1757295014507,0.68685693,110890.0,110880.0,0.013]
[1757295014715,0.96866611,110890.0,110880.0,0.013]
[1757295015938,0.77093508,110890.0,110880.0,0.013]
[1757295016698,0.77093508,110890.0,110880.0,0.01613]
[1757295017179,0.77093508,110890.0,110880.0,0.013]
[1757295017392,0.62025508,110890.0,110880.0,0.013]
[1757295017526,0.77093508,110890.0,110880.0,0.013]
[1757295018163,0.96082827,110890.0,110880.0,0.013]
[1757295018375,0.99642827,110890.0,110880.0,0.013]
[1757295019001,1.34426611,110890.0,110880.0,0.013]
[1757295020890,1.36360287,110890.0,110880.0,0.013]
[1757295021100,1.34426611,110890.0,110880.0,0.013]
[1757295022804,1.36360034,110890.0,110880.0,0.013]
[1757295023025,0.18040772,110860.0,110850.0,0.07368212]
[1757295023233,0.52098091,110860.0,110850.0,0.07368212]
[1757295023502,0.52098091,110860.0,110850.0,0.07571212]
[1757295024072,0.529877,110860.0,110850.0,0.07571212]
[1757295024316,0.529877,110860.0,110850.0,0.00556794]
[1757295024753,0.529877,110860.0,110850.0,0.00956794]
[1757295025185,0.33998381,110860.0,110850.0,0.00956794]
[1757295025597,0.34098381,110860.0,110850.0,0.01156794]
[1757295027147,0.530877,110860.0,110850.0,0.01156794]
[1757295027354,0.34098381,110860.0,110850.0,0.01156794]
[1757295028595,0.19030381,110860.0,110850.0,0.01156794]
[1757295028833,0.34098381,110860.0,110850.0,0.20146113]
[1757295030536,0.34098381,110860.0,110850.0,0.01156794]
[1757295030744,0.34098381,110860.0,110850.0,0.20146113]
[1757295031150,0.34098381,110860.0,110850.0,0.01156794]
[1757295033235,0.34098381,110860.0,110850.0,0.20146113]
[1757295034048,0.18140772,110860.0,110850.0,0.20146113]
[1757295034255,0.33208772,110860.0,110850.0,0.20146113]
[1757295034904,0.33208772,110860.0,110850.0,0.19199193]
[1757295035101,0.001,110860.0,110850.0,0.38188512]
[1757295035330,0.001,110860.0,110850.0,0.47380111]
[1757295035798,0.001,110860.0,110850.0,0.28390792]
[1757295036094,0.001,110860.0,110850.0,0.47380111]
[1757295036267,0.001,110860.0,110850.0,0.50088965]
[1757295036474,0.001,110860.0,110850.0,0.84142284]
[1757295037041,0.001,110860.0,110850.0,0.65152965]
[1757295037457,0.001,110860.0,110850.0,0.84142284]
[1757295037667,0.001,110860.0,110850.0,0.46163646]
[1757295037871,0.001,110860.0,110850.0,0.84142284]
[1757295039785,0.001,110860.0,110850.0,0.65152965]
[1757295041928,0.001,110860.0,110850.0,0.84142284]
[1757295042329,0.001,110860.0,110850.0,0.65152965]
[1757295042507,0.001,110860.0,110850.0,0.65154372]
[1757295042959,0.001,110860.0,110850.0,0.84145098]
[1757295044290,0.001,110860.0,110850.0,1.2023898]
[1757295045589,0.001,110860.0,110850.0,1.0900398]
[1757295045811,0.001,110860.0,110850.0,1.2406798]
[1757295046692,0.18937685,110890.0,110880.0,0.18037518]
[1757295046897,0.18937685,110890.0,110880.0,0.37028244]
[1757295047118,0.18937685,110890.0,110880.0,0.37231244]
[1757295047323,0.18937685,110890.0,110880.0,0.37538244]